bitfinex-derivatives/quotes_BTCF0:USTF0_20220102
["timestamp","ask_amount","ask_price","bid_price","bid_amount"]
[1641140709422,0.00720106,47440.0,47434.0,0.02107866]
[1641140709621,0.00720106,47440.0,47435.0,0.01197784]
[1641140710924,0.00720106,47440.0,47434.0,0.08967866]
[1641140711127,0.42161341,47437.0,47434.0,0.08967866]
[1641140711523,0.42161341,47437.0,47434.0,0.0686]
[1641140711727,0.00720106,47436.0,47432.0,1.43593198]
[1641140712126,0.60164453,47434.0,47432.0,1.43593198]
[1641140712327,0.18,47434.0,47432.0,1.01424115]
[1641140712526,0.009794,47433.0,47432.0,1e-08]
[1641140712726,0.2976664,47433.0,47432.0,1e-08]
[1641140713526,0.2976664,47433.0,47427.0,1.0207532]
[1641140713729,0.18,47432.0,47428.0,1.0207532]
[1641140713930,0.18720106,47432.0,47428.0,1.0207532]
[1641140714228,0.00720106,47431.0,47428.0,1.0207532]
[1641140714629,0.00720106,47431.0,47418.0,0.02108557]
[1641140714830,0.14033567,47424.0,47419.0,1.3157]
[1641140715228,0.14033567,47424.0,47419.0,0.2107]
[1641140715429,0.00720106,47423.0,47420.0,0.01197942]
[1641140715828,0.00720106,47423.0,47422.0,0.02108331]
[1641140716228,0.14033567,47424.0,47422.0,0.03306273]
[1641140716530,0.14033567,47424.0,47423.0,0.19197942]
[1641140716729,0.14033567,47424.0,47423.0,0.01197942]
[1641140717028,0.14753932,47424.0,47423.0,0.19197942]
[1641140717232,0.14033567,47424.0,47423.0,0.19197942]
[1641140717628,0.14033567,47424.0,47423.0,0.01197942]
[1641140717829,0.14753932,47424.0,47423.0,0.01197942]
[1641140718431,0.14033567,47424.0,47423.0,0.01197942]
[1641140718831,0.14753933,47424.0,47423.0,0.01197942]
[1641140719034,0.14033567,47424.0,47423.0,0.01197942]
[1641140721338,0.14033567,47424.0,47423.0,1.63130671]
[1641140721541,0.14033567,47424.0,47423.0,1.56050242]
[1641140721738,0.14033567,47424.0,47423.0,1.63130671]
[1641140722137,0.14033567,47424.0,47423.0,0.08278371]
[1641140722938,0.14753934,47424.0,47423.0,1.63941844]
[1641140723737,0.14753934,47424.0,47423.0,1.56861415]
[1641140724439,0.14753934,47424.0,47423.0,1.77931415]
[1641140725242,0.14753934,47424.0,47423.0,1.85101321]
[1641140725642,0.14753934,47424.0,47423.0,0.29437848]
[1641140727441,0.14753934,47424.0,47423.0,0.49546134]
[1641140728042,0.14753934,47424.0,47423.0,2.05209607]
[1641140728942,0.14033567,47424.0,47423.0,2.05209607]
[1641140729157,0.14033567,47424.0,47423.0,1.87209607]
[1641140729743,0.14033567,47424.0,47423.0,1.66139607]
[1641140729945,0.14753773,47424.0,47423.0,1.84139607]
[1641140730847,0.14753773,47424.0,47423.0,2.05309607]
[1641140731249,0.14753773,47424.0,47423.0,3.15809607]
[1641140731447,0.29046534,47433.0,47423.0,3.15809607]
[1641140731647,0.28067134,47433.0,47428.0,0.2107]
[1641140731849,0.28067134,47433.0,47428.0,0.30005]
[1641140732249,0.28067134,47433.0,47428.0,1.85668473]
[1641140732650,0.28067134,47433.0,47432.0,0.02107978]
[1641140733048,0.28067134,47433.0,47432.0,0.03305757]
[1641140737766,0.28067134,47433.0,47432.0,1.13805757]
[1641140739167,0.28067134,47433.0,47432.0,0.03305757]
[1641140741571,0.28067134,47433.0,47432.0,0.03305692]
[1641140748079,0.28689986,47433.0,47432.0,0.03305692]
[1641140756580,0.14656419,47433.0,47432.0,1.13805692]
[1641140756980,0.14033567,47438.0,47432.0,1.13805692]
[1641140757581,0.00622236,47437.0,47433.0,0.22267779]
[1641140757781,0.00622236,47437.0,47436.0,1.42678372]
[1641140758185,0.00622236,47437.0,47436.0,1.43876151]
[1641140758482,0.00622236,47437.0,47436.0,1.50239151]
[1641140758884,0.00622236,47437.0,47436.0,1.71409151]
[1641140759988,0.00622236,47437.0,47436.0,1.71309151]
[1641140761089,0.00622236,47437.0,47436.0,0.28630779]
[1641140761290,0.00622236,47437.0,47436.0,0.22267779]
[1641140762292,0.00622236,47437.0,47436.0,1.64946151]
[1641140763492,0.00622236,47437.0,47436.0,0.22267779]
[1641140764596,0.00622236,47437.0,47436.0,1.64946151]
[1641140765694,0.00622236,47437.0,47436.0,0.22267779]
[1641140766597,0.00622236,47437.0,47436.0,1.64946151]
[1641140769202,0.00622236,47437.0,47436.0,0.01197779]
[1641140769703,0.00622236,47437.0,47433.0,0.01197779]
[1641140769903,0.00622236,47437.0,47436.0,0.01197779]
[1641140770306,0.00622236,47437.0,47434.0,0.01197779]
[1641140770703,0.00622236,47437.0,47436.0,0.01197779]
[1641140770905,0.00622236,47437.0,47435.0,0.01197779]
[1641140771122,0.00622236,47437.0,47436.0,0.01197779]
[1641140771306,0.00622236,47437.0,47436.0,0.08550779]
[1641140775012,0.01601636,47437.0,47436.0,1.34425901]
[1641140775611,0.01601636,47437.0,47433.0,0.2107]
[1641140775812,0.18,47435.0,47433.0,0.2107]
[1641140776114,0.18,47435.0,47434.0,0.01197785]
[1641140776512,0.39056454,47435.0,47428.0,1.57771593]
[1641140776712,0.18,47431.0,47428.0,1.55663473]
[1641140777214,0.14033567,47429.0,47426.0,1.55663473]
[1641140777813,0.14033567,47429.0,47427.0,0.01197915]
[1641140778215,0.18,47428.0,47427.0,0.01197915]
[1641140779226,0.18,47428.0,47425.0,0.01197915]
[1641140779425,0.18,47428.0,47427.0,0.01197915]
[1641140779926,0.18,47428.0,47424.0,0.01197915]
[1641140781129,0.60354805,47429.0,47424.0,0.01197915]
[1641140781328,0.60354805,47429.0,47423.0,0.01197915]
[1641140781526,0.60354805,47429.0,47425.0,0.01197915]
[1641140781929,0.60354805,47429.0,47424.0,0.01197915]
[1641140782329,0.60354805,47429.0,47426.0,0.01197915]
[1641140782730,0.60354805,47429.0,47425.0,0.01197915]
[1641140782943,0.18,47426.0,47425.0,0.01197915]
[1641140783131,0.18,47426.0,47425.0,0.001]
[1641140783331,0.18,47426.0,47425.0,0.01297915]
[1641140783531,0.60354805,47429.0,47425.0,0.01297915]
[1641140783734,0.60354805,47429.0,47425.0,0.01197915]
[1641140783931,0.60354805,47429.0,47426.0,0.01197915]
[1641140784434,0.60354805,47429.0,47428.0,1.43560852]
[1641140785832,0.60354805,47429.0,47423.0,0.2107]
[1641140786032,0.60354805,47429.0,47422.0,1.55663473]
[1641140786033,0.60354805,47429.0,47428.0,0.01197946]
[1641140786236,0.08399562,47423.0,47422.0,1.55663473]
[1641140786634,0.18,47425.0,47422.0,1.55663473]
[1641140787132,0.14033567,47424.0,47422.0,1.55663473]
[1641140787935,0.14033567,47424.0,47421.0,1.55663473]
[1641140789538,0.14033567,47424.0,47421.0,1.73663473]
[1641140789739,0.14033567,47424.0,47421.0,1.55663473]
[1641140790144,0.14033567,47424.0,47422.0,0.05523015]
[1641140790339,0.14033567,47424.0,47421.0,1.55663473]
[1641140790540,0.14033567,47424.0,47422.0,1.55663473]
[1641140791240,0.14033567,47424.0,47423.0,1.4334263]
[1641140791839,0.298287,47424.0,47423.0,1.4334263]
[1641140796841,0.14033567,47424.0,47423.0,1.4334263]
[1641140797741,0.14033567,47424.0,47419.0,0.02108522]
[1641140799743,0.14033567,47424.0,47423.0,0.001]
[1641140800845,0.14033567,47424.0,47419.0,0.02108522]
[1641140801251,0.14033567,47424.0,47419.0,0.20108522]
[1641140801448,0.14033567,47424.0,47423.0,1.43387162]
[1641140801647,0.14033567,47424.0,47423.0,1.50490162]
[1641140802047,0.14033567,47424.0,47423.0,1.51688125]
[1641140802746,0.14033567,47424.0,47423.0,0.08300963]
[1641140802947,0.14033567,47424.0,47423.0,0.01197963]
[1641140803348,0.14033567,47424.0,47420.0,0.01197963]
[1641140803548,0.14033567,47424.0,47423.0,1.43078333]
[1641140803748,0.14033567,47424.0,47423.0,1.44276296]
[1641140804148,0.14033567,47424.0,47423.0,0.01197963]
[1641140804747,0.44399687,47424.0,47423.0,0.01197963]
[1641140806948,0.4550741,47424.0,47422.0,0.01197963]
[1641140807349,0.4550741,47424.0,47423.0,0.01197963]
[1641140807548,0.44399687,47424.0,47423.0,0.01197963]
[1641140807750,0.44399687,47424.0,47422.0,0.01197963]
[1641140808152,0.44399687,47424.0,47423.0,0.01197963]
[1641140808650,0.44399687,47424.0,47422.0,0.01197963]
[1641140809250,0.44399687,47424.0,47420.0,1.56861436]
[1641140809450,0.44399687,47424.0,47423.0,0.01197963]
[1641140809850,0.44399687,47424.0,47420.0,1.55663473]
[1641140809851,0.44399687,47424.0,47421.0,0.01197963]
[1641140810052,0.44399687,47424.0,47423.0,0.01197963]
[1641140810253,0.44399687,47424.0,47422.0,0.01197963]
[1641140810652,0.44399687,47424.0,47421.0,1.56861436]
[1641140810850,0.44399687,47424.0,47423.0,0.01197963]
[1641140811056,0.44399687,47424.0,47422.0,0.01197963]
[1641140811254,0.44399687,47424.0,47423.0,0.01197963]
[1641140811852,0.44399687,47424.0,47422.0,0.01197963]
[1641140816059,0.009794,47423.0,47422.0,0.01197963]
[1641140816260,0.009794,47423.0,47421.0,0.01197963]
[1641140816461,0.42175351,47422.0,47421.0,0.01197963]
[1641140816662,0.42175351,47422.0,47419.0,1.57771995]
[1641140816960,0.009794,47423.0,47419.0,1.13484718]
[1641140817363,0.009794,47423.0,47418.0,1.13484718]
[1641140817663,0.14033567,47419.0,47418.0,1.13484718]
[1641140818262,0.14033567,47419.0,47414.0,1.0207532]
[1641140819268,0.18,47417.0,47414.0,1.0207532]
[1641140819668,0.18,47417.0,47411.0,1.0207532]
[1641140819875,0.18,47418.0,47411.0,1.0207532]
[1641140820075,0.12,47418.0,47411.0,1.0207532]
[1641140820276,0.18,47418.0,47411.0,1.0207532]
[1641140820875,0.14033567,47419.0,47408.0,0.16142594]
[1641140822077,0.14033567,47419.0,47408.0,0.14033567]
[1641140822277,0.4217889,47418.0,47408.0,0.14033567]
[1641140822680,0.4217889,47418.0,47411.0,1.55034979]
[1641140822879,0.0110819,47417.0,47411.0,1.55034979]
[1641140824081,0.0110819,47417.0,47412.0,1.55034979]
[1641140825285,0.0110819,47417.0,47411.0,1.55034979]
[1641140827484,0.1910819,47417.0,47411.0,1.55034979]
[1641140827885,0.0110819,47416.0,47411.0,1.55034979]
[1641140828487,0.1910819,47417.0,47411.0,1.55034979]
[1641140828687,0.25617958,47413.0,47411.0,1.55034979]
[1641140829087,0.0110819,47412.0,47410.0,1.55034979]
[1641140829886,0.0110819,47412.0,47409.0,1.55034979]
[1641140831890,0.0110819,47412.0,47410.0,0.01198233]
[1641140833793,0.0110819,47412.0,47410.0,1.56233212]
[1641140834293,0.0110819,47412.0,47411.0,0.01198233]
[1641140835694,0.0110819,47412.0,47410.0,1.55034979]
[1641140836095,0.0110819,47412.0,47411.0,0.01198233]
[1641140837098,0.0110819,47412.0,47410.0,1.14046447]
[1641140837497,0.50618266,47414.0,47410.0,1.14046447]
[1641140838098,0.50618266,47414.0,47408.0,0.14033567]
[1641140838300,0.01120202,47413.0,47408.0,0.14033567]
[1641140838500,0.01120202,47413.0,47409.0,0.0119825]
[1641140840801,0.01120202,47413.0,47409.0,0.0919625]
[1641140841203,0.01120202,47413.0,47410.0,0.0119825]
[1641140842604,0.43303454,47413.0,47410.0,0.0119825]
[1641140843204,0.01120202,47412.0,47410.0,0.0119825]
[1641140843906,0.01120202,47412.0,47410.0,1.5577013]
[1641140844307,0.01120202,47412.0,47411.0,0.0119825]
[1641140845510,0.01120202,47412.0,47411.0,0.0797225]
[1641140845808,0.01120202,47412.0,47411.0,0.2597225]
[1641140846008,0.01120202,47412.0,47411.0,0.2808108]
[1641140846210,0.01120202,47412.0,47411.0,0.1008108]
[1641140846408,0.01120202,47413.0,47411.0,1.6465296]
[1641140846810,0.01120202,47413.0,47412.0,0.0119825]
[1641140847311,0.01120202,47413.0,47412.0,1.5577013]
[1641140848110,0.01120202,47413.0,47412.0,0.0119825]
[1641140851915,0.01120202,47413.0,47412.0,0.21306985]
[1641140852320,0.14033567,47424.0,47413.0,1.105]
[1641140852517,0.14033567,47424.0,47418.0,0.001]
[1641140852815,0.14033567,47424.0,47423.0,0.001]
[1641140853015,0.14033567,47424.0,47423.0,0.06129]
[1641140853414,0.14033567,47424.0,47423.0,0.0732725]
[1641140855818,0.14033567,47424.0,47423.0,0.0119825]
[1641140856418,0.14033567,47424.0,47420.0,1.42397153]
[1641140856918,0.14033567,47424.0,47421.0,0.22195753]
[1641140857517,0.14033567,47424.0,47422.0,0.01125753]
[1641140862221,0.14033567,47424.0,47421.0,0.09368]
[1641140862431,0.0655601,47419.0,47418.0,2.56564342]
[1641140862621,0.14033567,47424.0,47418.0,2.56564342]
[1641140863125,0.14033567,47424.0,47419.0,0.01125647]
[1641140863324,0.14033567,47424.0,47423.0,1.43431271]
[1641140864124,0.14033567,47424.0,47420.0,0.06223]
[1641140864324,0.14033567,47424.0,47418.0,0.2107]
[1641140864924,0.14033567,47424.0,47419.0,0.01125608]
[1641140866925,0.14033567,47424.0,47418.0,0.01125608]
[1641140867125,0.14033567,47424.0,47417.0,1.68522589]
[1641140867126,0.14033567,47424.0,47420.0,0.01125608]
[1641140867525,0.14033567,47424.0,47419.0,0.01125608]
[1641140867725,0.14033567,47424.0,47421.0,0.01125608]
[1641140868128,0.14033567,47424.0,47420.0,0.01125608]
[1641140868427,0.01198035,47423.0,47419.0,0.01125608]
[1641140868647,0.01198035,47423.0,47421.0,0.01125608]
[1641140869026,0.01198035,47423.0,47420.0,0.01125608]
[1641140869426,0.01198035,47423.0,47419.0,0.01125608]
[1641140869628,0.01198035,47423.0,47417.0,1.68522589]
[1641140869828,0.01198035,47423.0,47420.0,0.01125619]
[1641140870027,0.01198035,47423.0,47418.0,0.01125619]
[1641140870227,0.01198035,47423.0,47418.0,0.22195619]
[1641140870428,0.01198035,47423.0,47418.0,0.2107]
[1641140870632,0.01198035,47423.0,47419.0,0.01125606]
[1641140872230,0.01198035,47423.0,47421.0,1.43563376]
[1641140872433,0.01198035,47423.0,47421.0,1.49798376]
[1641140873238,0.01198035,47423.0,47422.0,0.01125587]
[1641140874235,0.01198035,47423.0,47422.0,1.44688963]
[1641140876148,0.01198035,47423.0,47422.0,0.01125587]
[1641140876848,0.01198035,47423.0,47421.0,0.06235]
[1641140877047,0.01198035,47423.0,47422.0,1.43537949]
[1641140877649,0.01198035,47423.0,47422.0,1.44663848]
[1641140879451,0.01198035,47423.0,47422.0,1.43537949]
[1641140879854,0.01198035,47423.0,47421.0,1.43537949]
[1641140880754,0.01198035,47423.0,47420.0,1.43537949]
[1641140882057,0.01198035,47423.0,47421.0,0.01125538]
[1641140882257,0.01198035,47423.0,47421.0,0.09204538]
[1641140882856,0.01198035,47423.0,47422.0,0.01125538]
[1641140883057,0.01198035,47423.0,47422.0,1.44663487]
[1641140883261,0.01198035,47423.0,47422.0,1.43537949]
[1641140883756,0.01198035,47423.0,47421.0,1.43537949]
[1641140884760,0.01198035,47423.0,47420.0,1.43537949]
[1641140885358,0.01198035,47423.0,47421.0,0.01125531]
[1641140885559,0.01198035,47423.0,47421.0,0.07155531]
[1641140885957,0.01198035,47423.0,47421.0,1.5069348]
[1641140886157,0.01198035,47423.0,47421.0,1.49567949]
[1641140889659,0.01198035,47423.0,47422.0,0.01125464]
[1641140890061,0.01198035,47423.0,47421.0,1.49567949]
[1641140890359,0.01198035,47423.0,47422.0,1.43537949]
[1641140890864,0.01198035,47423.0,47421.0,1.49567949]
[1641140892460,0.42174692,47422.0,47421.0,1.49567949]
[1641140892861,0.43372727,47422.0,47421.0,1.50693442]
[1641140893563,0.43372727,47422.0,47421.0,0.07155493]
[1641140910882,0.43372727,47422.0,47421.0,0.01125493]
[1641140911285,0.43372727,47422.0,47418.0,0.01125493]
[1641140911482,0.43372727,47422.0,47417.0,1.70631216]
[1641140911682,0.43372727,47422.0,47419.0,0.01125773]
[1641140911683,0.01198035,47421.0,47419.0,0.01125773]
[1641140912182,0.01198035,47421.0,47417.0,0.16142194]
[1641140912884,0.01198035,47421.0,47418.0,0.0112578]
[1641140913083,0.41053867,47417.0,47414.0,1.54489022]
[1641140913499,0.18,47419.0,47414.0,1.54489022]
[1641140913685,0.20109505,47415.0,47414.0,1.47979022]
[1641140913986,0.21088905,47415.0,47400.0,2.2977]
[1641140914184,0.18,47406.0,47402.0,1.7419878]
[1641140914385,0.276804,47406.0,47402.0,1.7419878]
[1641140914584,0.41713967,47406.0,47402.0,1.7419878]
[1641140914787,0.01198397,47405.0,47403.0,0.00974096]
[1641140916687,0.01198397,47405.0,47402.0,0.00974096]
[1641140916886,0.01198397,47405.0,47401.0,1.0213955]
[1641140917086,0.01198397,47405.0,47403.0,0.00985388]
[1641140917288,0.19198397,47405.0,47403.0,0.00985388]
[1641140917486,0.01198397,47405.0,47402.0,0.00985388]
[1641140917985,0.01198397,47405.0,47395.0,0.00985388]
[1641140918187,0.19198397,47405.0,47403.0,0.00985388]
[1641140918389,0.19198397,47405.0,47393.0,0.23179703]
[1641140918390,0.19198397,47405.0,47396.0,0.00985388]
[1641140918693,0.01198397,47404.0,47393.0,0.23179703]
[1641140918988,0.01198397,47404.0,47397.0,0.00985385]
[1641140919387,0.01198397,47405.0,47394.0,0.00985385]
[1641140919887,0.01198397,47403.0,47398.0,0.00985385]
[1641140920289,0.01198397,47405.0,47394.0,0.00985385]
[1641140920488,0.01198397,47402.0,47399.0,0.00985385]
[1641140920887,0.01198397,47404.0,47395.0,0.00985385]
[1641140921088,0.01198397,47401.0,47400.0,0.00985385]
[1641140921289,0.01198397,47403.0,47396.0,0.00985385]
[1641140921688,0.01198397,47405.0,47394.0,0.00985385]
[1641140921887,0.01198397,47402.0,47397.0,0.00985385]
[1641140922287,0.01198397,47404.0,47395.0,0.00985385]
[1641140922487,0.01198397,47401.0,47398.0,0.00985385]
[1641140922687,0.20594394,47399.0,47396.0,0.00985385]
[1641140922888,0.20594394,47399.0,47393.0,0.02109703]
[1641140923089,0.01198397,47398.0,47393.0,0.02109703]
[1641140923990,0.01198397,47398.0,47393.0,0.23179703]
[1641140924189,0.15012967,47406.0,47395.0,0.2107]
[1641140924391,0.15012967,47406.0,47400.0,0.20109399]
[1641140924589,0.01198361,47405.0,47400.0,0.20109399]
[1641140924789,0.01198361,47405.0,47401.0,0.18]
[1641140924989,0.49917191,47411.0,47401.0,1.285]
[1641140925592,0.49917191,47411.0,47401.0,0.18]
[1641140925789,0.49917191,47411.0,47400.0,0.02109399]
[1641140925990,0.49917191,47411.0,47402.0,0.18]
[1641140926199,0.14033567,47411.0,47402.0,1.61559181]
[1641140926502,0.01198269,47410.0,47403.0,0.18]
[1641140926700,0.01198269,47410.0,47405.0,0.14033567]
[1641140926899,0.01198269,47410.0,47405.0,0.20705567]
[1641140927498,0.01198269,47414.0,47405.0,0.20705567]
[1641140927700,0.01198269,47409.0,47405.0,0.20705567]
[1641140928100,0.01198269,47413.0,47405.0,0.20705567]
[1641140928301,0.01198269,47408.0,47405.0,0.20705567]
[1641140928801,0.01198269,47412.0,47405.0,0.20705567]
[1641140929202,0.01198269,47414.0,47405.0,0.20705567]
[1641140929402,0.01198269,47411.0,47405.0,0.20705567]
[1641140929603,0.01198269,47413.0,47405.0,0.06672]
[1641140930002,0.01198269,47410.0,47405.0,0.06672]
[1641140930204,0.01198269,47412.0,47402.0,1.61559181]
[1641140930402,0.01198269,47412.0,47403.0,1.43559181]
[1641140930602,0.01198269,47409.0,47403.0,1.43559181]
[1641140930803,0.01198269,47411.0,47405.0,0.14033567]
[1641140931003,0.01198269,47408.0,47405.0,0.14033567]
[1641140931403,0.01198269,47410.0,47405.0,0.14033567]
[1641140931605,0.01198269,47407.0,47405.0,0.14033567]
[1641140931802,0.01198269,47409.0,47405.0,0.14033567]
[1641140932204,0.01198269,47406.0,47405.0,0.14033567]
[1641140932418,0.01198269,47408.0,47405.0,0.14033567]
[1641140932617,0.01198269,47406.0,47405.0,0.14033567]
[1641140932917,0.01198269,47407.0,47405.0,0.14033567]
[1641140933216,0.01198269,47406.0,47405.0,0.14033567]
[1641140933920,0.01198269,47409.0,47405.0,0.14033567]
[1641140934222,0.01198269,47408.0,47405.0,0.14033567]
[1641140934621,0.01198269,47409.0,47405.0,0.14033567]
[1641140934822,0.01198269,47407.0,47405.0,0.14033567]
[1641140935021,0.4218578,47410.0,47405.0,0.14033567]
[1641140935022,0.01198269,47408.0,47405.0,0.14033567]
[1641140935422,0.01198269,47409.0,47405.0,0.14033567]
[1641140935624,0.0952329,47406.0,47405.0,0.14033567]
[1641140936223,0.10721559,47406.0,47405.0,0.14033567]
[1641140938024,0.10721559,47406.0,47405.0,0.15169445]
[1641140938224,0.28721559,47406.0,47405.0,0.15169445]
[1641140938827,0.10721559,47406.0,47405.0,0.14033567]
[1641140939925,0.01198269,47406.0,47405.0,0.14033567]
[1641140940327,0.01198269,47411.0,47405.0,0.14033567]
[1641140940728,0.01198269,47406.0,47405.0,0.14033567]
[1641140941129,0.01198269,47411.0,47405.0,0.14033567]
[1641140942229,0.19198269,47411.0,47410.0,0.35893532]
[1641140942628,0.19198269,47411.0,47409.0,0.59822554]
[1641140942828,0.19198269,47411.0,47410.0,0.59822554]
[1641140943629,0.01198269,47411.0,47410.0,0.59822554]
[1641140943828,0.19198269,47411.0,47410.0,0.59822554]
[1641140944431,0.01198269,47411.0,47410.0,0.59822554]
[1641140947032,0.01198269,47411.0,47410.0,0.69094554]
[1641140947432,0.37081893,47411.0,47410.0,0.09272]
[1641140948032,0.64192201,47411.0,47405.0,0.14033567]
[1641140948433,0.01198269,47410.0,47405.0,0.14033567]
[1641140949135,0.01198269,47410.0,47406.0,0.01135898]
[1641140949334,0.01198269,47410.0,47405.0,0.14033567]
[1641140949735,0.37081893,47410.0,47406.0,0.01135879]
[1641140949934,0.01198269,47409.0,47405.0,0.14033567]
[1641140950337,0.01198269,47409.0,47406.0,0.01135894]
[1641140950738,0.01198269,47409.0,47405.0,0.14033567]
[1641140952539,0.01198269,47410.0,47405.0,0.14033567]
[1641140953740,0.18819242,47408.0,47406.0,0.01136127]
[1641140954541,0.01198269,47407.0,47406.0,1.44908077]
[1641140954743,0.01198269,47407.0,47406.0,1.22312509]
[1641140955339,0.27110308,47411.0,47406.0,1.22312509]
[1641140955539,0.27110308,47411.0,47406.0,1.31131509]
[1641140956141,0.0119839,47410.0,47406.0,1.31131509]
[1641140957043,0.0119839,47410.0,47407.0,0.01973468]
[1641140957642,0.0119839,47410.0,47408.0,0.00994068]
[1641140957842,0.0119839,47412.0,47408.0,0.00994068]
[1641140958044,0.0119839,47409.0,47408.0,0.00994068]
[1641140958842,0.0119839,47415.0,47408.0,0.00994068]
[1641140959243,0.0119839,47409.0,47408.0,0.00994068]
[1641140959446,0.0119839,47414.0,47408.0,0.00994068]
[1641140959643,0.0119839,47409.0,47408.0,0.00994068]
[1641140960043,0.59873892,47419.0,47408.0,0.00994068]
[1641140960044,0.0119839,47416.0,47408.0,0.00994068]
[1641140960242,0.0119839,47409.0,47408.0,0.00994068]
[1641140960443,0.0119839,47415.0,47408.0,0.00994068]
[1641140960644,0.0119839,47409.0,47408.0,0.00994068]
[1641140960843,0.0119839,47414.0,47408.0,0.00994068]
[1641140961246,0.0119839,47409.0,47408.0,0.00994068]
[1641140961547,0.0119839,47417.0,47408.0,0.00994068]
[1641140962044,0.37082014,47417.0,47408.0,0.00994068]
[1641140962448,0.0119839,47416.0,47408.0,0.00994068]
[1641140964645,0.0119839,47416.0,47408.0,0.18994068]
[1641140964845,0.0119839,47416.0,47411.0,2.37993143]
[1641140965048,0.0119839,47416.0,47414.0,0.0210876]
[1641140965445,0.35883624,47419.0,47414.0,0.0210876]
[1641140965647,0.2348565,47423.0,47412.0,0.19973468]
[1641140965846,0.40793783,47426.0,47412.0,0.189794]
[1641140966352,0.59886568,47424.0,47415.0,0.18]
[1641140966748,0.01198079,47423.0,47416.0,0.01132224]
[1641140966947,0.01198079,47423.0,47416.0,0.29433224]
[1641140967147,0.01198079,47423.0,47422.0,0.14033567]
[1641140967650,0.01198079,47425.0,47422.0,0.14033567]
[1641140967847,0.01198079,47423.0,47422.0,0.14033567]
[1641140968248,0.01198079,47424.0,47422.0,0.14033567]
[1641140968448,0.01198079,47423.0,47422.0,0.14033567]
[1641140968949,0.01198079,47425.0,47422.0,0.14033567]
[1641140969149,0.01198079,47423.0,47422.0,0.14033567]
[1641140969649,0.01198079,47424.0,47422.0,0.14033567]
[1641140970052,0.01198079,47425.0,47422.0,0.14033567]
[1641140970253,0.01198079,47423.0,47422.0,0.14033567]
[1641140970450,0.01198079,47424.0,47422.0,0.14033567]
[1641140970650,0.01198079,47423.0,47422.0,0.14033567]
[1641140971252,0.01198079,47425.0,47422.0,0.14033567]
[1641140971452,0.82965402,47426.0,47422.0,0.14033567]
[1641140971453,0.01198079,47423.0,47422.0,0.14033567]
[1641140971652,0.01198079,47424.0,47422.0,0.14033567]
[1641140972154,0.01198079,47423.0,47422.0,0.14033567]
[1641140972354,0.01198079,47423.0,47422.0,0.15012967]
[1641140972756,0.01198079,47425.0,47422.0,0.15012967]
[1641140972953,0.01198079,47423.0,47422.0,0.16157545]
[1641140973454,0.01198079,47424.0,47422.0,0.15012967]
[1641140973665,0.01198079,47423.0,47422.0,0.16157535]
[1641140974165,0.01198079,47423.0,47422.0,0.15012967]
[1641140974566,0.01198079,47431.0,47422.0,0.1712126]
[1641140974964,0.01198079,47423.0,47422.0,0.1712126]
[1641140975499,0.01198079,47430.0,47422.0,0.1712126]
[1641140975865,0.01198079,47423.0,47422.0,0.15012967]
[1641140976065,0.01198079,47429.0,47422.0,0.17121365]
[1641140976465,0.01198079,47429.0,47427.0,1.42859506]
[1641140976466,0.3594318,47429.0,47427.0,1.42859506]
[1641140976866,0.3594318,47429.0,47425.0,1.42859506]
[1641140977066,0.3594318,47428.0,47425.0,1.42859506]
[1641140977869,0.3594318,47428.0,47426.0,1.42859506]
[1641140978566,0.42166454,47432.0,47427.0,1.42859506]
[1641140978567,0.3594318,47429.0,47427.0,1.42859506]
[1641140979366,0.28094141,47427.0,47426.0,1.42859506]
[1641140980472,0.28094141,47427.0,47423.0,0.3561696]
[1641140981569,0.28094141,47427.0,47422.0,0.50629927]
[1641140986071,0.28094141,47427.0,47423.0,0.3561696]
[1641140988076,0.28094141,47427.0,47422.0,0.50629927]
[1641140991073,0.28094141,47427.0,47423.0,0.3561696]
[1641140991575,0.01197983,47426.0,47423.0,0.3561696]
[1641140992175,0.20692807,47425.0,47423.0,0.18370898]
[1641140992876,0.01197983,47424.0,47423.0,0.18370898]
[1641140993075,0.10142983,47424.0,47423.0,0.18370898]
[1641140993877,0.10142983,47424.0,47421.0,0.73395166]
[1641140994477,0.01197983,47423.0,47421.0,0.73395166]
[1641140994678,0.01197983,47423.0,47421.0,0.14033567]
[1641140995280,0.01197983,47424.0,47421.0,0.14033567]
[1641140995479,0.01197983,47422.0,47418.0,0.59361599]
[1641140995679,0.01197983,47423.0,47418.0,0.59361599]
[1641140996079,0.01197983,47424.0,47419.0,0.01144692]
[1641140996478,0.01197983,47422.0,47419.0,0.01144692]
[1641140996678,0.07203983,47423.0,47417.0,0.01144692]
[1641140996879,0.01197983,47421.0,47416.0,0.16142239]
[1641140997080,0.01197983,47422.0,47418.0,0.01144738]
[1641140997283,0.01197983,47422.0,47421.0,1.43797092]
[1641140998581,0.01197983,47422.0,47420.0,1.43797092]
[1641141002388,0.01197983,47422.0,47416.0,1.59939331]
[1641141002586,0.01197983,47422.0,47420.0,0.02108476]
[1641141002787,0.59905301,47428.0,47421.0,0.02108279]
[1641141002987,0.48975916,47443.0,47427.0,0.18]
[1641141003189,0.48975916,47443.0,47433.0,0.18]
[1641141003387,1.85518059,47448.0,47433.0,0.26685]
[1641141003590,1.31262052,47436.0,47434.0,0.49237134]
[1641141003787,1.31262052,47436.0,47435.0,0.3917]
[1641141004189,1.15882052,47436.0,47435.0,0.42475351]
[1641141004388,1.43745137,47440.0,47435.0,0.42475351]
[1641141004588,1.43745137,47440.0,47439.0,0.18]
[1641141004789,1.43745137,47440.0,47438.0,0.2107]
[1641141004987,1.43745137,47440.0,47436.0,0.011977]
[1641141005189,1.43745137,47440.0,47434.0,0.28067134]
[1641141005390,0.18,47446.0,47434.0,0.28067134]
[1641141005692,0.009794,47445.0,47439.0,0.14033567]
[1641141006693,0.009794,47445.0,47442.0,0.83638025]
[1641141006894,0.009794,47445.0,47442.0,0.91301025]
[1641141007394,0.009794,47445.0,47444.0,0.83638025]
[1641141008194,0.2,47449.0,47444.0,0.83638025]
[1641141008596,0.02,47449.0,47444.0,0.83638025]
[1641141009495,0.08983757,47448.0,47444.0,0.83638025]
[1641141010097,0.02,47449.0,47444.0,0.83638025]
[1641141010296,0.02,47449.0,47442.0,0.07663]
[1641141010497,0.29979638,47457.0,47442.0,0.07663]
[1641141010697,0.36077039,47471.0,47457.0,1.105]
[1641141010897,0.36077039,47471.0,47457.0,0.08904]
[1641141011099,0.009794,47468.0,47457.0,0.08904]
[1641141011298,1.31411513,47461.0,47457.0,0.08904]
[1641141011698,1.31411513,47461.0,47460.0,0.14033567]
[1641141011896,1.32390913,47461.0,47460.0,0.14033567]
[1641141012098,1.32390913,47461.0,47455.0,0.14033567]
[1641141012397,1.38746913,47461.0,47455.0,0.14033567]
[1641141012596,0.18,47456.0,47455.0,0.14033567]
[1641141013197,0.18,47460.0,47455.0,0.14033567]
[1641141013497,0.18,47457.0,47455.0,0.14033567]
[1641141014300,0.18,47456.0,47455.0,0.14033567]
[1641141014913,0.009794,47461.0,47455.0,0.14033567]